Cogmind - Beta 16.1 @@@ ROGUE MODE // 2026.04.28 @ 19:48:49 Player: kareds Result: Destroyed by X-57 Shotgunner with High-powered Shotgun Performance ------------- Evolutions (2) 1000 Regions Visited (3) 600 Robots Destroyed (21) 105 Value Destroyed (507) 507 Prototype IDs (0) 0 Alien Tech Used (0) 0 Bonus (0) 0 TOTAL SCORE: 2212 Bonus ------- None Cogmind --------- Core Integrity 0/550 Matter 134/300 Energy 100/100 System Corruption 0% Temperature Cool (0) Movement Core (50) Location -8/Materials Parts ------- > --- POWER (2) -------- (None) > --- PROPULSION (3) --- (None) > --- UTILITY (4) ------ (None) > --- WEAPON (2) ------- (None) > --- INVENTORY (5) ---- Light Ion Engine Signal Interpreter Shrapnel Trap Peak State ------------ > --- POWER ------------ Light Deuterium Engine Makeshift Power Source > --- PROPULSION ------- Aluminum Leg Aluminum Leg > --- UTILITY ---------- Light Armor Plating Hardened Light Armor Plating Hardened Light Armor Plating > --- WEAPON ----------- Heavy Riot Gun Subdweller Beam Cannon > --- INVENTORY -------- Light Ion Engine Signal Interpreter Medium Laser Shrapnel Trap [Rating: 20] Favorites ----------- Power Light Ion Engine Engine Light Ion Engine Power Core Light Nuclear Core Propulsion Aluminum Leg Treads Light Treads Leg Aluminum Leg Utility Hardened Light Armor Plating Device Seismic Detector Storage Small Storage Unit Protection Hardened Light Armor Plating Weapon Medium Laser Energy Gun Medium Laser Energy Cannon Subdweller Beam Cannon Ballistic Gun Light Assault Rifle Launcher Grenade Launcher Special Weapon Plasma Cutter Build | -11 -10 -10 -8 ------- Run | Yrd Mat Sub Mat Slots Evolved 4 | . . . 4 Power 1 | . . . 1 Propulsion 1 | . . . 1 Utility 2 | . . . 2 Weapon . | . . . . Parts Attached 26 | 7 2 11 6 Power 5 | 1 1 2 1 Engine 4 | 1 . 2 1 Core 1 | . 1 . . Reactor . | . . . . Propulsion 4 | 2 . 2 . Treads 2 | 2 . . . Leg 2 | . . 2 . Wheel . | . . . . Hover . | . . . . Flight . | . . . . Utility 5 | 2 . 2 1 Device 1 | 1 . . . Storage 1 | 1 . . . Processor . | . . . . Hackware . | . . . . Protection 3 | . . 2 1 Artifact . | . . . . Weapon 12 | 2 1 5 4 Energy Gun 5 | 1 . 2 2 Energy Cannon 1 | . . 1 . Ballistic Gun 2 | 1 . 1 . Ballistic Cannon . | . . . . Launcher 3 | . 1 . 2 Special Weapon 1 | . . 1 . Impact Weapon . | . . . . Slashing Weapon . | . . . . Piercing Weapon . | . . . . Special Melee Weapon . | . . . . Unidentified Prototypes . | . . . . Parts Lost 6 | . . 3 3 Power . | . . . . Propulsion . | . . . . Utility 1 | . . 1 . Weapon 5 | . . 2 3 Highest Loss Streak 2 | . . 2 2 To Critical Strikes . | . . . . Average Backups 5 | 2 7 4 2 Power . | . 1 . . Propulsion . | 1 2 . . Utility 2 | . 2 2 1 Weapon . | . . 1 . Tool/Special . | . . . . Unused Backups 9 | . 6 2 1 Power . | . . . . Propulsion 1 | . 1 . . Utility 6 | . 5 . 1 Weapon 2 | . . 2 . Tool/Special . | . . . . Average Slot Usage (%) 93 | . 99 99 57 Engine 10 | . 6 12 12 Core 3 | . 7 1 . Treads 10 | . 27 2 . Leg 14 | . . 25 12 Device 9 | . 14 8 . Storage 5 | . 14 1 . Protection 11 | . . 18 19 Energy Gun 13 | . 14 14 8 Energy Cannon 4 | . . 6 5 Launcher 7 | . 12 5 . Peak Build Rating 20 | 7 10 16 20 Average Rating 10 | 5 8 11 13 On Entrance 8 | . 7 10 16 Avg Prop Armor Cover (%) 4 | . . . 4 Naked Turns 77 | . . . 77 Heaviest Build 34 | 12 16 26 34 Greatest Support 40 | 40 40 40 20 Greatest Overweight (x) 2 | 2 . 1 2 Average Overweight (x) . | . . . . Largest Inventory Capacity 8 | 8 8 8 5 Average Capacity 6 | 7 8 5 5 Most Carried 8 | 4 8 8 4 Average Carried 5 | 2 7 5 3 Final Capacity 8 | 8 8 5 5 Final Carried 8 | 4 8 5 3 Class Distribution -------------------- 100% | Mutant Dominant Class ---------------- Mutant | -10/Materials Mutant | -10/Subcaves Mutant | -8/Materials Resources | -11 -10 -10 -8 ----------- Run | Yrd Mat Sub Mat Matter Collected 694 | 219 201 214 60 Remotely . | . . . . Salvage Created 528 | 54 187 161 126 Parts 44 | 6 21 9 8 Haulers Intercepted . | . . . . Recyclers Shooed . | . . . . Parts Field Recycled . | . . . . Retrieved Matter . | . . . . Parts Self-Destructed . | . . . . Prevented . | . . . . Parts Restored . | . . . . Kills | -11 -10 -10 -8 ------- Run | Yrd Mat Sub Mat Combat Hostiles Destroyed 15 | . 9 4 2 Guns 7 | . 2 3 2 AOE 8 | . 7 1 . Classes Destroyed 8 | 1 5 1 1 Builder 2 | . 1 . 1 Tunneler 2 | 2 . . . Watcher 2 | . 2 . . Swarmer 6 | . 6 . . Grunt 2 | . 2 . . Sentry 2 | . . . 2 Artisan 1 | . . 1 . Subdweller 5 | . 1 4 . Best Kill Streak 3 | 1 3 2 1 Combat Bots Only 3 | . 3 2 1 Max Kills in Single Turn 3 | 1 3 1 1 Gunslinging . | . . . . Exploded 3 | . 3 1 . Melee . | . . . . Uniques/NPCs Destroyed . | . . . . Combat | -11 -10 -10 -8 -------- Run | Yrd Mat Sub Mat Hostile Shots Fired 149 | . 22 18 109 Missed 54 | . 9 4 41 Hits 95 | . 13 14 68 Projectile 95 | . 13 14 68 Critical Strikes 5 | . 1 . 4 Damage Taken 1571 | . 258 341 972 Core 663 | . 37 69 557 Absorbed by Shields . | . . . . Regen/Repaired (Parts) 44 | . . . 44 Core Remaining (%) 78 | 100 . 57 . Volleys Fired 70 | 11 18 29 12 Largest 2 | 2 2 2 2 Hottest 140 | 70 80 140 140 Shots Fired 105 | 22 29 35 19 Gun 70 | 22 19 16 13 Cannon 9 | . . 9 . Launcher 20 | . 10 4 6 Special 6 | . . 6 . Kinetic 18 | 11 1 6 . Thermal 55 | 11 18 22 4 Explosive 20 | . 10 4 6 Electromagnetic 12 | . . 3 9 Robot Hit Streak 10 | 10 5 6 6 Robot Miss Streak 4 | 4 3 2 1 Penetration Max . | . . . . Secondary Targets . | . . . . Shots Hit Robots 53 | 14 15 11 13 Core Hits 40 | 4 16 7 13 Critical Kills . | . . . . Critical Parts Destroyed . | . . . . Critical Strikes 1 | . 1 . . Burn 1 | . 1 . . Melee Attacks . | . . . . Impact . | . . . . Slashing . | . . . . Piercing . | . . . . Sneak Attacks . | . . . . Combat Hostiles . | . . . . Follow-up Attacks . | . . . . Damage Inflicted 1472 | 142 533 246 551 Guns 572 | 142 126 145 159 Cannons . | . . . . Explosions 868 | . 407 101 360 Melee . | . . . . Ramming 32 | . . . 32 Kinetic 107 | 42 . 65 . Thermal 276 | 100 126 25 25 Explosive 868 | . 407 101 360 Electromagnetic 189 | . . 55 134 Impact . | . . . . Slashing . | . . . . Piercing . | . . . . Highest Corruption . | . . . . Average Corruption . | . . . . Corruption Purged . | . . . . Corruption Blocked . | . . . . Overload Shots . | . . . . Overflow Damage . | . . . . Projectiles . | . . . . Explosions . | . . . . Melee . | . . . . Knockbacks . | . . . . Impact . | . . . . Kinetic . | . . . . Secondary . | . . . . Self-Inflicted Damage 152 | . 101 36 15 Shots 7 | . 3 4 . Rammed 6 | . . . 6 Targets Rammed 6 | . . . 6 Kicked . | . . . . Crushed . | . . . . Highest Temperature 568 | 90 99 144 568 Average Temperature 163 | 33 30 43 267 Received Heat Transfer 486 | . 63 63 360 Effects 16 | . . . 16 Shutdowns 7 | . . . 7 Energy Bleed 1 | . . . 1 Interference 2 | . . . 2 Matter Decay 2 | . . . 2 Short Circuit 2 | . . . 2 Damage (minor) 1 | . . . 1 Damage (major) 1 | . . . 1 Siege Activations . | . . . . Martial Activations . | . . . . Shielding Activations . | . . . . Robots Disrupted . | . . . . Combat Hostiles . | . . . . Robots Corrupted . | . . . . Combat Hostiles . | . . . . Parts Fried 1 | . . . 1 Impact Corruptions . | . . . . Robots Melted . | . . . . Combat Hostiles . | . . . . Parts Melted 2 | 1 1 . . Heat Transferred 888 | 296 444 74 74 Parts Sabotaged . | . . . . Parts Stolen . | . . . . Parts Stripped . | . . . . Power Chain Reactions . | . . . . Alert | -11 -10 -10 -8 ------- Run | Yrd Mat Sub Mat Maximum Alert Level . | . . . . Low Security (%) 100 | 100 100 . 100 Level 1 . | . . . . Level 2 . | . . . . Level 3 . | . . . . Level 4 . | . . . . Level 5 . | . . . . High Security . | . . . . Max Security . | . . . . Peak Influence 114 | 5 114 . 77 Initial . | . . . . Average 23 | . 30 . 17 Influence Increases 495 | 10 282 . 203 Destroy 0b10 Robot/C 200 | . 160 . 40 Destroy 0b10 Robot/NC 30 | 10 15 . 5 Destroy Leader 54 | . 34 . 20 Successful Hack 11 | . 5 . 6 Disable Machine 30 | . 15 . 15 Destroy Structure 65 | . 53 . 12 Lose Combat Pursuer 105 | . . . 105 Influence Decreases 438 | 10 236 46 146 Entered New Map 23 | . . 23 . Time Decay 385 | 10 236 23 116 Lost Part 30 | . . . 30 Squads Dispatched 3 | . . . 3 Investigation . | . . . . Extermination . | . . . . Reinforcement 2 | . . . 2 Assault . | . . . . Garrison 1 | . . . 1 Intercept . | . . . . Searches Triggered . | . . . . Construction Impeded . | . . . . Haulers Reinforced . | . . . . Active Scanning Responses . | . . . . Cargo Convoy Interrupts . | . . . . Stealth | -11 -10 -10 -8 --------- Run | Yrd Mat Sub Mat Distress Signals 2 | . 1 . 1 Communications Jammed . | . . . . Distress Signals . | . . . . Times Spotted 34 | . 11 4 19 Peak Tracking Total 10 | . 3 2 10 Tactical Retreats 4 | . . . 4 Traps | -11 -10 -10 -8 ------- Run | Yrd Mat Sub Mat Traps Triggered 3 | . 3 . . Indirectly . | . . . . Trap Hack Attempts . | . . . . Triggered . | . . . . Disarmed . | . . . . Reprogrammed . | . . . . Reused . | . . . . Traps Extracted . | . . . . Installed . | . . . . Triggered . | . . . . Most Traps Carried 1 | . . 1 1 Machines | -11 -10 -10 -8 ---------- Run | Yrd Mat Sub Mat Machines Disabled 2 | . 1 . 1 Max in Single Turn 1 | . 1 . 1 Machines Repaired . | . . . . Machines Dismantled . | . . . . Machines Sabotaged . | . . . . Overloaded Fab Kills . | . . . . Hacking | -11 -10 -10 -8 --------- Run | Yrd Mat Sub Mat Machines Accessed 6 | . 2 2 2 Terminals 3 | . 2 . 1 Fabricators . | . . . . Repair Stations 1 | . . . 1 Recycling Units . | . . . . Scanalyzers . | . . . . Garrison Access . | . . . . Total Hacks 16 | . 4 3 9 Successful 9 | . 2 3 4 Failed 7 | . 2 . 5 Catastrophic 1 | . 1 . . Database Lockouts . | . . . . Manual 7 | . 3 . 4 Terminals 10 | . 4 . 6 Fabricators . | . . . . Repair Stations 3 | . . . 3 Recycling Units . | . . . . Scanalyzers . | . . . . Garrison Access . | . . . . Terminal Hacks 6 | . 2 3 1 Record 1 | . . 1 . Open Door 1 | . . 1 . Alert Level 1 | . . . 1 Locate Traps 1 | . 1 . . Zone Layout 1 | . 1 . . Release Object 1 | . . 1 . Fabricator Hacks . | . . . . Repair Station Hacks 2 | . . . 2 Scan Component 1 | . . . 1 Repair 1 | . . . 1 Recycling Unit Hacks . | . . . . Scanalyzer . | . . . . Garrison Access Hacks . | . . . . Unauthorized Hacks 1 | . . . 1 Terminals 1 | . . . 1 Operators 1 | . . . 1 Fabricators . | . . . . Repair Stations . | . . . . Recycling Units . | . . . . Scanalyzers . | . . . . Garrison Access . | . . . . Data Cores Recovered . | . . . . Used . | . . . . Hacking Detections 2 | . 1 . 1 Full Trace Events 2 | . 1 . 1 Feedback Events . | . . . . Feedback Blocked . | . . . . Robot Schematics Acquired . | . . . . Robots Built . | . . . . Authchips . | . . . . Time . | . . . . Total Robot Build Rating . | . . . . Part Schematics Acquired . | . . . . Parts Built . | . . . . Authchips . | . . . . Time . | . . . . Total Part Build Rating . | . . . . Part Studies Acquired . | . . . . Parts Repaired 1 | . . . 1 Time 26 | . . . 26 Parts Recycled . | . . . . Recycled Matter . | . . . . Retrieved Matter . | . . . . Retrieved Components . | . . . . Parts Scanalyzed . | . . . . Part Schematics Acquired . | . . . . Parts Damaged . | . . . . Bothacking | -11 -10 -10 -8 ------------ Run | Yrd Mat Sub Mat Used RIF Installer . | . . . . Robots Hacked . | . . . . Non-combat . | . . . . Combat . | . . . . Robot Hacks Applied . | . . . . Relay Couplers Released . | . . . . Fabnet Peak Effective % . | . . . . Robots Rewired . | . . . . Allies Hacked . | . . . . Hacks Repelled . | . . . . Allies | -11 -10 -10 -8 -------- Run | Yrd Mat Sub Mat Total Allies . | . . . . Largest Group . | . . . . Highest-Rated Group . | . . . . Highest-Rated Ally . | . . . . Total Orders . | . . . . Ally Attacks . | . . . . Total Damage . | . . . . Kills . | . . . . Allies Corrupted . | . . . . Allies Melted . | . . . . Intel | -11 -10 -10 -8 ------- Run | Yrd Mat Sub Mat Active Infowar (turns) 1814 | 31 965 818 . Seismic 1814 | 31 965 818 . Robot Analysis Total . | . . . . Derelict Logs Recovered 3 | . . 3 . Drone Launches . | . . . . Drone Recoveries . | . . . . Exploration | -11 -10 -10 -8 ------------- Run | Yrd Mat Sub Mat Turns Passed 2871 | 163 965 1346 397 Spaces Moved 1562 | 78 419 814 251 Core 150 | 9 . . 141 Treads 549 | 69 419 61 . Legs 863 | . . 753 110 Wheels . | . . . . Hover . | . . . . Flight . | . . . . Fastest Speed 50 | 50 160 120 50 Average Speed 148 | 152 160 151 116 Slowest Speed 260 | 160 160 190 260 Overloaded Moves . | . . . . Propulsion Burnouts . | . . . . Robots Hopped . | . . . . Potential Cave-ins . | . . . . Cave-ins Triggered . | . . . . Exploration Rate (%) 38 | 4 81 40 27 Regions Visited 3 Branch Regions 1 Pre-discovered Areas 1 | . . 1 . Known Exits Taken . | . . . . Unknown Exits Taken 3 | 1 1 1 . Scrap Searched 2 | . . 2 . Spaces Dug . | . . . . Terrain Destroyed 92 | . 56 21 15 Melee . | . . . . Projectile 1 | . . 1 . AOE 91 | . 56 20 15 Terrain Rammed . | . . . . Walls Destroyed . | . . . . Machines Disabled . | . . . . Actions | -11 -10 -10 -8 --------- Run | Yrd Mat Sub Mat Total 2004 | 99 686 887 332 Wait 290 | . 222 18 50 Move 1559 | 77 418 813 251 Hop . | . . . . Pick Up 20 | 4 11 5 . Fast Attach 20 | 7 6 2 5 Attach 11 | . 1 7 3 Detach 2 | . 1 1 . Swap 7 | . 1 3 3 Drop 18 | . 8 8 2 Fire 70 | 11 18 29 12 Melee . | . . . . Ram 6 | . . . 6 Kick . | . . . . Crush . | . . . . Escape Stasis . | . . . . Rewire . | . . . . Trap . | . . . . Miscellaneous 1 | . . 1 . Route ------- -11/Scrapyard -10/Materials (discovered 5 exits: [*Mat x3] / [*Min] / *Sub) -10/Subcaves -8/Materials History --------- Turn | Location | Event 27 | -11/Scrapyard | Discovered new exit (range 16) 164 | -11/Scrapyard | Entered Materials 242 | -10/Materials | Discovered new exit (range 16) 309 | -10/Materials | Build established: Mutant 343 | -10/Materials | Discovered new exit (range 16) 531 | -10/Materials | Discovered new exit (range 5) 703 | -10/Materials | Discovered new exit (range 3) 764 | -10/Materials | Derelicts attacked the area 1114 | -10/Materials | Discovered new exit (range 10) 1129 | -10/Materials | Entered Subcaves 1136 | -10/Subcaves | Learned Materials emergency access door positions 1150 | -10/Subcaves | Learned Materials terminal intel 1195 | -10/Subcaves | Disturbed a concealed Subdweller 1448 | -10/Subcaves | Shifting Twisted Machinery released Shrapnel Trap 1539 | -10/Subcaves | Learned location of Zion (-6) 1707 | -10/Subcaves | Shifting Twisted Machinery released Hvy. Riot Gun 1711 | -10/Subcaves | Shifting Twisted Machinery released Sub. Beam Cannon 2252 | -10/Subcaves | A swath of the cavern ceiling suddenly collapsed 2329 | -10/Subcaves | Released subatomizers from SUBCON Basin 2467 | -10/Subcaves | Discovered new exit (range 4) 2475 | -10/Subcaves | Entered Materials 2475 | -8/Materials | Evolved 4 slots: Power x1, Propulsion x1, Utility x2 2477 | -8/Materials | Loaded intel: 11 terminal locations 2526 | -8/Materials | Repaired Aluminum Leg 2753 | -8/Materials | Released all parts (9) 2801 | -8/Materials | Garrison activated, responded to threat 2849 | -8/Materials | Core integrity fell below 50% 2864 | -8/Materials | Core integrity fell below 20% 2872 | -8/Materials | Destroyed by X-57 Shotgunner with High-powered Shotgun Last Messages --------------- 02801_ O-16 Technician locks terminal. 02801_ G-47 Trooper calls for garrison reinforcements. 02801_ ALERT: Activating Garrison Access M001. 02802_ K-01 Serf collects debris. 02802_ Grenade Launcher destroyed. 02804_ Critical hit (Burn: +37). 02804_ Grenade Launcher destroyed. 02804_ Slammed into K-01 Serf. 02806_ Slammed into U-05 Engineer. 02806_ W-25 Informer sends out distress signal. 02806_ K-01 Serf cleans the Terminal. 02807_ Slammed into U-05 Engineer. 02809_ K-01 Serf cleans the Terminal. 02809_ Slammed into K-01 Serf. 02813_ Slammed into U-05 Engineer. 02814_ Slammed into K-01 Serf. 02815_ K-01 Serf cleans the Terminal. 02829_ Acquired Shock Rifle. 02853_ Shock Rifle destroyed. Map ----- +----------------------------------------------------+ | ??????????# #??????????#???????????????????????? | | ??????????# #?????????? ??????????????""???????? | | ??????????# #?????????? ??????????????"T???????? | | ??????????# #?????????? ??????????????""???+???? | | ??????????+ +?????????# #??????????????????????? | | ??????????# #?????????# #??????????????????????? | | ??????????# #?????????# #??????????????????????? | | ??????????# #?????????# #??????????????????????? | | ??????????# #?????????# #??????????????????????? | | ??????????# ########### ########???????????###+# | | ??????????# # # # #???????????# | | ??????????# + # # ! ############# * | | ??????????# # # # / | | ??######### # / + "T" #########%= | | # #g# """ #???????#! | | ??######### # #b# #???????# ] | | ??????????# # #x########???????# | | ??????????# # # #??????????????# | | ??????????# #####+##### #??????????????# | | ??????????# #???# #??????????????# | | ??????????# ##### #???# #??????????????# | | ??????????# #???# #???# #??????????????# | | ???????#####+###### #???# #??????????????# "" | | ???????# ## #???# #??????????????# """ # | | ???????# ##g##### #??????????????# """ " | | ???????# + gxg @#??????????????# "?" T | | ???????# ##+#######??????????????# ?? " | | ???????# """ # !???????????????????# ??? # | | ???????# " " """ # ?????????????????# ??? # | | ???????# "Y" """ # """" #?????????????????????? ? | | ???????# """ # """" #????????????????????????? | | ???????########### """" #????????????????????????? | | ?????????????????# #????????????????????????? | | ?????????????????##/#####?????????????????????o??? | | ?????????"T"?????? ????????????????????????????? | | ?????????????????? ????????????????????????????? | | ?????????????????????????????????????????????????? | | ?????????????????????????????????????????????????? | | ?????????????????????????????????????????????????? | | ?????????????????????????????????????????????????? | | ?????????????????????????????????????????????????? | | ?????????????????????????????????????????????????? | | ?????????????????????????????????????????????????? | | ?????????????????????????????????????????????????? | | ?????????????????????????????????????????????????? | | ?????????????????????????????????????????????????? | | ?????????????????????????????????????????????????? | | ?????????????????????????????????????????????????? | | ?????????????????????????????????????????????????? | | ?????????????????????????????????????????????????? | +----------------------------------------------------+ Best States ------------- Heat Dissipation 31 Energy Generation 24 Energy Capacity 210 Matter Stores 300 Matter Capacity 300 Sight Range 16 Terrain Scan Density 10 Armor Coverage 450 Evasion (%) 55 Recoil Reduction 2 Item Schematics ----------------- None Robot Schematics ------------------ None Fabricated ------------ Nothing Repaired ---------- Aluminum Leg | 51% | -8/Materials Studied --------- None Alien Tech Used ----------------- None Achievements -------------- None Challenges ------------ None Game ------ Seed ExoskeletonHardlightLoader Manual? 0 Play Time 00:23:41 Cumulative 24.6 hours Start 2026.04.28 @ 14:48:22 End 2026.04.28 @ 19:48:49 Sessions 3 Manual Loads 0 Difficulty Rogue Special Mode None Game No. 30 Rogue 14 Adventurer 16 Explorer 0 Win Type - Total 0 Types 0/0/0/0/0/0/0/0/0/0 Lore% 33 Gallery% 30 Achievement% 24 Wizard Run 0 Options --------- Layout 1 ASCII 0 Keyboard 0 Movement Mouse Keybinds 0 Fullscreen 1 Font 24/Smallcaps Map View 50x35 Zoom Use 0% Tactical HUD 1 Map Filters NONE Filters NONE Steam 1 RUN: e11ee642-98cd-4dc2-bee0-fc2f7ab7b206